bitfinex/quotes_ETHUSD_20250326
["timestamp","ask_amount","ask_price","bid_price","bid_amount"]
[1743007612548,3.0,2017.2,2016.9,5.74336]
[1743007613114,3.0,2017.2,2016.9,10.70131]
[1743007613320,4.16311425,2017.1,2016.9,5.74335]
[1743007613522,3.0,2017.0,2016.9,0.55]
[1743007614061,3.0,2017.0,2016.8,5.25047039]
[1743007614260,4.16311425,2016.9,2016.8,10.75878039]
[1743007614556,4.16311425,2016.9,2016.8,10.20878039]
[1743007614849,4.16311425,2016.9,2016.8,10.75878039]
[1743007615054,7.36171425,2017.1,2016.8,10.75878039]
[1743007616053,12.31934425,2017.1,2016.8,10.75878039]
[1743007616355,7.36171425,2017.1,2016.8,10.75878039]
[1743007616766,7.16311425,2017.1,2016.8,15.71700039]
[1743007617070,7.16311425,2017.1,2016.8,10.75869039]
[1743007617674,7.16311425,2017.1,2016.9,14.5]
[1743007618670,7.16311425,2017.1,2016.8,6.47959039]
[1743007619229,7.16311425,2017.1,2016.8,20.97959039]
[1743007620367,12.12079425,2017.1,2016.8,16.02137039]
[1743007620669,4.16311425,2016.9,2016.8,16.02137039]
[1743007620863,4.16311425,2016.9,2016.8,20.97971039]
[1743007621231,4.16311425,2016.9,2016.8,15.47137039]
[1743007622968,7.16311425,2016.9,2016.8,15.47137039]
[1743007623183,7.16311425,2016.9,2016.8,14.5]
[1743007623663,7.16311425,2016.9,2016.7,4.776]
[1743007624068,7.16311425,2016.9,2016.7,19.276]
[1743007624573,7.16311425,2016.9,2016.8,4.95834]
[1743007624754,3.0,2016.9,2016.8,4.95834]
[1743007625293,3.0,2016.9,2016.7,24.23455]
[1743007625452,7.16311425,2016.9,2016.7,24.23455]
[1743007625657,7.16311425,2016.9,2016.7,20.26172868]
[1743007626052,12.31984425,2016.9,2016.7,4.776]
[1743007626288,14.04761867,2016.9,2016.5,17.34484]
[1743007626590,14.04761867,2016.9,2016.6,4.776]
[1743007626887,7.36171425,2016.9,2016.6,9.73476]
[1743007627052,7.16311425,2016.9,2016.6,9.73476]
[1743007627389,3.0,2016.9,2016.7,4.95856]
[1743007627585,3.0,2016.9,2016.8,4.95834]
[1743007627965,9.31885425,2017.3,2016.9,4.95797]
[1743007628165,3.0,2017.2,2017.0,4.95772]
[1743007629792,7.16311425,2017.1,2017.0,4.95772]
[1743007630176,7.16311425,2017.1,2016.8,7.31025311]
[1743007630506,7.16311425,2017.1,2016.8,5.74395]
[1743007630660,12.12074425,2017.1,2016.7,4.95836]
[1743007630859,4.16311425,2016.9,2016.6,11.48876108]
[1743007631079,4.16311425,2016.9,2016.6,10.70496108]
[1743007631280,4.16311425,2016.7,2016.6,10.70497108]
[1743007631601,7.16311425,2016.9,2016.6,10.70482108]
[1743007631809,7.16311425,2016.9,2016.7,10.70072]
[1743007631955,7.16311425,2016.9,2016.7,5.74226]
[1743007632160,3.0,2016.9,2016.8,4.95834]
[1743007632591,4.16311425,2017.1,2016.9,4.95801]
[1743007632793,5.32956241,2017.4,2016.9,4.95801]
[1743007632794,5.15557,2017.4,2017.0,5.75343]
[1743007633094,3.0,2017.2,2017.0,5.75343]
[1743007633511,4.16311425,2017.1,2016.9,4.95801]
[1743007633684,4.16311425,2017.1,2016.8,5.5723]
[1743007633685,9.31944425,2017.1,2016.8,4.776]
[1743007633868,4.16311425,2016.9,2016.8,4.776]
[1743007634073,17.07948425,2016.9,2016.6,0.97013108]
[1743007634306,3.0,2016.6,2016.5,11.07893]
[1743007634468,3.0,2016.6,2016.5,16.40493]
[1743007635676,7.95786,2017.0,2016.6,5.50875]
[1743007635874,12.12097425,2017.0,2016.6,5.50875]
[1743007636175,13.84867168,2017.0,2016.7,4.95855]
[1743007636810,13.84867168,2017.0,2016.6,5.50881]
[1743007637310,8.89081168,2017.0,2016.6,5.50882]
[1743007637475,13.84877168,2017.0,2016.6,5.50882]
[1743007637816,4.16311425,2016.8,2016.6,5.50882]
[1743007637974,4.16311425,2016.8,2016.5,17.66390623]
[1743007638173,4.16311425,2016.8,2016.6,14.5]
[1743007639134,4.16311425,2016.8,2016.6,19.45876]
[1743007640422,4.16311425,2016.8,2016.6,14.5]
[1743007641212,0.1986,2016.9,2016.6,19.4588]
[1743007642182,0.1986,2016.9,2016.6,19.45871]
[1743007644281,12.12102425,2017.0,2016.6,19.45871]
[1743007644722,17.07904425,2017.0,2016.6,19.45871]
[1743007644901,18.80680867,2017.0,2016.6,19.45871]
[1743007645290,7.16311425,2016.8,2016.6,14.5]
[1743007645607,7.16311425,2016.8,2016.6,19.4588]
[1743007645988,7.16311425,2017.1,2016.8,4.95832]
[1743007646187,7.16311425,2017.1,2016.7,11.219]
[1743007646389,12.12077425,2017.1,2016.7,6.26041]
[1743007646698,12.12077425,2017.1,2016.8,14.5]
[1743007647425,3.0,2017.0,2016.8,14.5]
[1743007647597,4.16311425,2016.9,2016.7,6.26045]
[1743007648118,3.0,2017.0,2016.7,6.26045]
[1743007648336,12.31885425,2017.3,2016.8,4.95818]
[1743007648542,12.31885425,2017.3,2016.9,4.9581]
[1743007648908,9.12025425,2017.3,2017.0,0.7916]
[1743007649337,3.0,2017.2,2017.0,0.7916]
[1743007653008,3.0,2017.2,2017.0,5.74929]
[1743007653343,3.0,2017.2,2017.0,7.774219]
[1743007653558,3.0,2017.2,2017.0,12.549219]
[1743007653720,3.0,2017.2,2017.0,17.506959]
[1743007654122,4.16311425,2017.3,2017.0,12.549219]
[1743007654333,12.31842425,2017.5,2017.1,4.95751]
[1743007654941,7.16311425,2017.5,2017.3,4.95708]
[1743007655241,5.33128969,2018.0,2017.5,5.73022]
[1743007655242,4.36171425,2017.9,2017.5,5.73022]
[1743007655454,3.0,2017.6,2017.3,5.73081]
[1743007655739,7.95699,2017.4,2017.1,7.8930274]
[1743007655938,4.16311425,2017.2,2017.1,6.12]
[1743007656328,4.16311425,2017.2,2017.1,11.07761]
[1743007656641,7.16311425,2017.4,2017.1,11.07761]
[1743007657141,7.16311425,2017.2,2017.1,6.12]
[1743007657442,8.17942568,2017.2,2017.1,6.12]
[1743007658947,8.17942568,2017.2,2017.1,6.67]
[1743007658948,3.0,2017.2,2017.1,6.67]
[1743007659315,3.0,2017.2,2017.1,12.44661]
[1743007659715,0.1986,2017.6,2017.3,4.95695]
[1743007659918,9.31762425,2017.8,2017.4,5.73199]
[1743007660233,5.82661164,2017.8,2017.5,4.95662]
[1743007660410,3.0,2017.7,2017.5,4.95662]
[1743007660815,3.0,2017.7,2017.4,5.73202]
[1743007661119,4.16311425,2017.6,2017.4,0.7752]
[1743007662131,9.11950425,2017.6,2017.2,5.75408]
[1743007662459,7.95727,2017.3,2017.1,4.774]
[1743007662751,7.16311425,2017.2,2017.1,4.774]
[1743007662950,12.12047425,2017.2,2017.1,4.774]
[1743007663677,7.16311425,2017.2,2017.1,4.774]
[1743007668959,7.16311425,2017.2,2017.1,9.73161]
[1743007669170,3.0,2017.2,2017.1,11.08061]
[1743007669378,3.0,2017.2,2017.1,11.5871911]
[1743007669661,3.0,2017.5,2017.3,4.9571]
[1743007669862,4.774,2018.2,2017.4,11.26787]
[1743007669863,9.11900425,2017.8,2017.4,11.26787]
[1743007670092,3.0,2017.7,2017.5,4.9565]
[1743007670397,4.16311425,2017.8,2017.5,4.95649]
[1743007670561,3.0,2017.7,2017.5,4.95649]
[1743007672395,3.0,2017.7,2017.6,4.95638]
[1743007672590,3.0,2017.7,2017.5,4.95649]
[1743007672971,3.0,2017.7,2017.5,6.1959327]
[1743007673873,3.0,2017.7,2017.5,11.1524327]
[1743007674396,3.0,2017.7,2017.6,4.773]
[1743007679566,3.0,2017.7,2017.6,9.72938]
[1743007679993,3.0,2017.7,2017.6,4.773]
[1743007682403,3.0,2017.7,2017.6,10.27938]
[1743007682604,3.0,2017.7,2017.6,11.41232576]
[1743007683199,4.16311425,2017.8,2017.7,4.95613]
[1743007683404,4.95494,2018.2,2017.8,4.95579]
[1743007683581,3.0,2018.0,2017.8,4.95578]
[1743007683900,3.0,2018.0,2017.8,6.67542558]
[1743007684901,4.16311425,2018.1,2017.9,4.95551]
[1743007685075,4.16311425,2018.1,2017.8,6.67551558]
[1743007685698,9.91009,2018.2,2017.8,6.67537558]
[1743007685900,4.16311425,2018.1,2017.8,11.63114558]
[1743007686212,4.16311425,2018.1,2017.9,1.24597456]
[1743007686509,4.16311425,2018.1,2017.9,6.20149456]
[1743007691201,4.16311425,2018.1,2017.9,4.95552]
[1743007691701,4.16311425,2018.1,2017.9,4.95549]
[1743007691908,3.0,2018.4,2018.1,5.50515]
[1743007692205,3.0,2018.4,2018.1,10.276]
[1743007692410,3.0,2018.4,2018.2,4.95489]
[1743007693023,3.0,2018.4,2018.1,10.27601]
[1743007693451,3.0,2018.4,2018.1,15.23102]
[1743007693601,3.0,2018.4,2018.1,10.27601]
[1743007694342,3.0,2018.4,2018.2,1.59839]
[1743007694942,3.0,2018.4,2018.1,10.276]
[1743007695124,4.16311425,2018.5,2018.2,4.9549]
[1743007695295,4.16311425,2018.5,2018.3,1.523104]
[1743007695495,3.0,2018.4,2018.3,1.523104]
[1743007696334,3.0,2018.4,2018.1,10.27615]
[1743007696697,4.16311425,2018.3,2018.1,10.27615]
[1743007696897,3.0,2018.4,2018.1,10.27601]
[1743007697099,3.0,2018.4,2018.2,4.95491]
[1743007698528,3.0,2018.4,2018.2,4.95477]
[1743007698835,9.31491425,2018.9,2018.5,4.95417]
[1743007699021,4.16311425,2018.8,2018.5,4.95417]
[1743007699219,4.16311425,2018.8,2018.6,0.55]
[1743007699423,4.16311425,2018.8,2018.6,6.29632]
[1743007701436,4.16311425,2018.8,2018.6,5.895034]
[1743007701629,4.16311425,2018.8,2018.6,4.77]
[1743007702139,4.16311425,2018.8,2018.4,6.31222]
[1743007702140,3.0,2018.7,2018.5,5.32]
[1743007702338,4.16311425,2018.6,2018.5,5.32]
[1743007702541,9.11703425,2018.6,2018.5,4.77]
[1743007702837,12.31563425,2018.6,2018.3,6.12]
[1743007703039,4.16311425,2018.4,2018.3,11.439]
[1743007703338,7.16311425,2018.4,2018.3,10.889]
[1743007703841,12.11752425,2018.4,2018.3,10.889]
[1743007704339,3.0,2018.4,2018.3,16.59386]
[1743007704550,3.0,2018.4,2018.3,18.253246]
[1743007704719,3.0,2018.4,2018.3,10.889]
[1743007706933,3.0,2018.4,2018.3,10.889]
[1743007711145,3.0,2018.4,2018.3,16.39366]
[1743007711350,3.0,2018.4,2018.3,20.15548474]
[1743007711641,4.16311425,2018.6,2018.4,0.8219]
[1743007712621,4.16311425,2018.6,2018.4,5.77625]
[1743007713252,4.16311425,2018.6,2018.4,20.27625]
[1743007714781,3.0,2018.8,2018.5,5.50406]
[1743007714978,7.16311425,2018.8,2018.5,14.50121747]
[1743007715146,7.16311425,2018.8,2018.6,4.95386]
[1743007715351,7.16311425,2018.8,2018.7,4.95368]
[1743007715577,7.16311425,2018.8,2018.7,5.50368]
[1743007715770,4.16311425,2018.8,2018.7,7.00874575]
[1743007715971,4.16311425,2018.8,2018.7,2.85026575]
[1743007717186,4.16311425,2018.8,2018.7,7.80394575]
[1743007718470,7.16311425,2019.0,2018.7,7.80394575]
[1743007718670,0.1986,2019.2,2018.7,2.85026575]
[1743007718883,9.11435425,2019.7,2019.3,4.95207]
[1743007719088,4.95148,2019.6,2019.2,4.95222]
[1743007719267,3.0,2019.4,2019.3,9.72012]
[1743007719473,4.16311425,2019.5,2019.3,9.72012]
[1743007719658,4.16311425,2019.5,2019.3,4.768]
[1743007720882,4.16311425,2019.5,2019.3,9.72004]
[1743007721083,4.16311425,2019.5,2019.3,9.72013]
[1743007721285,3.0,2019.6,2019.4,5.50196]
[1743007721473,4.16311425,2019.7,2019.4,10.4538]
[1743007721673,4.16311425,2019.7,2019.5,4.95169]
[1743007721879,3.0,2019.6,2019.4,6.32724]
[1743007722073,3.0,2019.6,2019.4,9.7425116]
[1743007722584,3.0,2019.6,2019.4,9.7424916]
[1743007722886,4.16311425,2019.7,2019.4,9.7424816]
[1743007723083,3.0,2019.6,2019.4,9.7424816]
[1743007723292,3.0,2019.6,2019.5,2.30679176]
[1743007723705,3.0,2019.6,2019.4,1.3754]
[1743007723912,4.16311425,2019.5,2019.3,4.768]
[1743007724266,4.16311425,2019.5,2019.3,9.72013]
[1743007724476,4.16311425,2019.5,2019.4,2.422013]
[1743007725606,3.0,2019.6,2019.4,7.373973]
[1743007725766,3.0,2019.6,2019.5,4.95172]
[1743007725966,3.0,2019.6,2019.4,8.143573]
[1743007726465,3.0,2019.6,2019.4,13.095383]
[1743007726812,3.0,2019.6,2019.5,1.7863383]
[1743007727393,3.0,2019.6,2019.5,6.7380583]
[1743007728162,3.0,2019.6,2019.5,7.2880583]
[1743007728566,9.31199425,2020.1,2019.7,4.95106]
[1743007728793,7.95051,2020.0,2019.7,5.62479983]
[1743007728996,3.0,2020.0,2019.7,5.62479983]
[1743007729179,3.0,2020.0,2019.7,6.44639983]
[1743007729380,4.36171425,2020.1,2019.8,5.315]
[1743007729697,3.0,2020.0,2019.9,4.95074]
[1743007730012,3.0,2020.0,2019.9,5.50074]
[1743007730216,4.16311425,2020.1,2019.9,4.95074]
[1743007730382,3.0,2020.0,2019.9,5.50074]
[1743007732290,4.16311425,2020.4,2020.1,4.95017]
[1743007732465,3.0,2020.3,2020.1,4.95017]
[1743007732872,3.0,2020.3,2019.9,7.85930138]
[1743007732873,9.11322425,2020.2,2019.9,7.85930138]
[1743007733106,4.16311425,2020.2,2019.9,6.12]
[1743007733273,4.16311425,2020.2,2019.9,11.07059]
[1743007733678,4.16311425,2020.2,2019.9,16.02119]
[1743007733879,4.16311425,2020.2,2019.9,11.07059]
[1743007734278,3.0,2020.4,2020.0,5.50032]
[1743007734482,3.0,2020.4,2020.2,0.55]
[1743007734699,9.11218425,2020.6,2020.2,5.4999]
[1743007734924,4.16311425,2020.6,2020.3,9.71458]
[1743007735227,3.0,2020.5,2020.3,10.823168]
[1743007735425,3.0,2020.5,2020.3,5.873588]
[1743007735813,7.94928,2020.5,2020.3,5.873588]
[1743007736181,4.16311425,2020.4,2020.3,5.315]
[1743007737582,4.16311425,2020.4,2020.3,4.765]
[1743007737804,4.16311425,2020.4,2020.3,5.315]
[1743007738756,7.94928,2020.5,2020.3,5.315]
[1743007738916,12.11239425,2020.5,2020.3,5.315]
[1743007739112,7.94928,2020.5,2020.3,5.315]
[1743007739332,3.0,2020.5,2020.3,6.423637]
[1743007739761,3.0,2020.6,2020.4,5.49939]
[1743007740035,3.0,2020.6,2020.4,0.55]
[1743007741359,7.9491,2020.6,2020.4,0.55]
[1743007741954,7.9491,2020.6,2020.4,6.33009]
[1743007741955,3.0,2020.6,2020.4,6.33009]
[1743007742180,3.0,2020.6,2020.5,1.7703727]
[1743007746433,3.0,2020.6,2020.5,6.7196327]
[1743007747446,3.0,2020.8,2020.5,6.7194927]
[1743007747688,3.0,2020.8,2020.6,4.94887]
[1743007747862,4.23311425,2020.9,2020.6,4.94887]
[1743007748067,4.23311425,2020.9,2020.8,6.26553]
[1743007748068,0.07,2020.9,2020.8,6.26553]
[1743007748377,0.07,2020.9,2020.8,11.0770083]
[1743007748547,0.07,2020.9,2020.8,11.02753]
[1743007749237,0.07,2020.9,2020.8,15.23104425]
[1743007749436,0.6211131,2022.3,2021.6,0.55]
[1743007749744,9.30661425,2022.3,2021.9,4.94583]
[1743007750167,4.16311425,2022.1,2021.9,4.94567]
[1743007750360,4.16311425,2022.1,2022.0,4.94559]
[1743007750560,4.16311425,2022.1,2021.9,5.49578]
[1743007750869,9.10855425,2022.1,2021.9,4.761]
[1743007751058,4.16311425,2022.1,2021.9,4.761]
[1743007751256,4.16311425,2022.1,2021.9,9.70672]
[1743007751457,4.16311425,2022.3,2022.0,4.94559]
[1743007751853,4.16311425,2022.3,2022.0,4.94536]
[1743007752162,3.0,2022.2,2021.9,10.49954]
[1743007752569,4.16311425,2022.1,2021.9,10.49954]
[1743007753068,7.16311425,2022.1,2021.9,4.761]
[1743007753369,7.16311425,2022.1,2021.9,9.7068]
[1743007753667,7.16311425,2022.1,2021.9,12.8193205]
[1743007753869,7.16311425,2022.1,2022.0,4.94559]
[1743007754273,3.0,2022.1,2022.0,4.94559]
[1743007754840,3.0,2022.1,2021.9,12.8193905]
[1743007755684,7.16311425,2022.1,2021.9,12.8193905]
[1743007755883,7.16311425,2022.1,2021.9,12.8194105]
[1743007756063,12.10860425,2022.1,2021.9,4.761]
[1743007756263,12.10860425,2022.1,2021.5,9.70677]
[1743007756264,4.94604,2021.9,2021.5,9.70677]
[1743007756464,9.10920425,2021.8,2021.5,4.76]
[1743007756650,4.16311425,2021.8,2021.5,9.70666]
[1743007756855,4.16311425,2021.8,2021.5,11.308803]
[1743007757372,4.16311425,2021.8,2021.5,9.70666]
[1743007757802,4.16311425,2021.6,2021.3,4.9471]
[1743007757959,4.16311425,2021.4,2021.3,4.759]
[1743007759302,12.11017425,2021.4,2021.3,4.759]
[1743007759861,12.11017425,2021.4,2021.2,0.55]
[1743007760056,3.0,2021.3,2020.9,5.76597]
[1743007760296,4.16311425,2021.1,2021.0,4.759]
[1743007760499,12.11058425,2021.3,2021.0,5.729716]
[1743007760974,7.16311425,2021.3,2021.0,10.677666]
[1743007761154,7.16311425,2021.3,2021.0,10.677596]
[1743007761661,12.11042425,2021.3,2021.0,10.677596]
[1743007763703,12.11042425,2021.3,2021.1,4.94775]
[1743007763704,7.16311425,2021.3,2021.1,4.94775]
[1743007764777,1.00280924,2021.7,2021.2,4.94738]
[1743007764778,4.94661,2021.6,2021.2,4.94738]
[1743007764979,7.16311425,2021.5,2021.2,4.94738]
[1743007765188,4.16311425,2021.3,2021.1,4.94766]
[1743007765367,4.16311425,2021.3,2021.1,0.55]
[1743007765885,4.16311425,2021.3,2021.1,5.49771]
[1743007766286,4.16311425,2021.5,2021.1,3.6995016]
[1743007766605,7.16311425,2021.5,2021.3,4.9473]
[1743007766763,7.16311425,2021.5,2021.3,4.94718]
[1743007767578,7.16311425,2021.5,2021.3,9.89429]
[1743007767978,7.16311425,2021.5,2021.3,4.94711]
[1743007768477,7.16311425,2021.5,2021.3,6.27042506]
[1743007769062,7.16311425,2021.5,2021.2,4.94752]
[1743007769391,12.11003425,2021.5,2021.1,4.94776]
[1743007769695,4.16311425,2021.3,2021.1,4.94765]
[1743007770292,4.16311425,2021.3,2021.1,0.55]
[1743007770583,7.16311425,2021.3,2021.2,4.758]
[1743007774686,8.14626,2021.2,2021.0,5.72932802]
[1743007774872,4.16311425,2021.1,2021.0,4.758]
[1743007775379,3.0,2021.2,2021.0,4.758]
[1743007775570,0.37131067,2021.3,2021.1,0.55]
[1743007775772,3.0,2021.4,2021.2,4.94755]
[1743007776185,3.0,2021.4,2021.1,5.4976]
[1743007776385,3.0,2021.4,2021.2,4.94733]
[1743007777020,3.0,2021.4,2021.1,11.19855]
[1743007777315,3.0,2021.4,2021.1,13.0441117]
[1743007778700,3.0,2021.4,2021.3,4.94731]
[1743007779004,3.0,2021.4,2021.3,0.55]
[1743007780407,3.0,2021.5,2021.4,5.49706]
[1743007780900,3.0,2021.5,2021.4,0.55]
[1743007781107,3.0,2021.5,2021.4,5.49706]
[1743007785108,3.0,2021.6,2021.4,6.64240301]
[1743007785278,4.16311425,2021.7,2021.5,9.70482]
[1743007785473,4.16311425,2021.7,2021.5,14.65149]
[1743007785679,3.0,2021.8,2021.6,4.94636]
[1743007785889,4.36171425,2022.1,2021.7,4.94633]
[1743007786203,14.25269425,2022.1,2021.7,4.9462]
[1743007786407,4.16311425,2021.9,2021.7,0.55]
[1743007786709,14.05508425,2021.9,2021.6,0.55]
[1743007787010,4.16311425,2021.7,2021.6,0.55]
[1743007788891,9.10945425,2021.7,2021.5,4.758]
[1743007789109,4.16311425,2021.7,2021.5,4.758]
[1743007790088,4.16311425,2021.7,2021.5,10.71800152]
[1743007791884,4.16311425,2021.7,2021.5,10.71784152]
[1743007792117,4.16311425,2021.7,2021.6,4.94657]
[1743007793178,4.16311425,2021.7,2021.5,15.77805415]
[1743007793709,4.16311425,2021.7,2021.5,10.83140415]
[1743007793907,4.16311425,2021.7,2021.5,15.77807415]
[1743007794312,4.16311425,2021.7,2021.6,4.94657]
[1743007794475,4.16311425,2021.7,2021.5,10.83140415]
[1743007797423,4.16311425,2021.4,2021.2,5.307]
[1743007798428,4.36171425,2021.4,2021.1,9.70365]
[1743007798830,9.30880425,2021.4,2021.1,9.70365]
[1743007800327,4.16311425,2021.2,2020.9,0.55]
[1743007800527,4.16311425,2021.0,2020.9,10.73363516]
[1743007801406,0.37543485,2021.1,2020.9,10.73363516]
[1743007801607,9.11071425,2021.2,2020.9,11.70020369]
[1743007802029,4.16311425,2021.5,2021.2,4.94751]
[1743007802333,3.0,2021.5,2021.3,14.994751]
[1743007802529,3.0,2021.5,2021.3,14.5]
[1743007802722,4.16311425,2021.4,2021.3,14.5]
[1743007803546,4.16311425,2021.4,2021.2,4.94741]
[1743007803730,7.16311425,2021.4,2021.1,4.9477]
[1743007803902,4.16311425,2021.2,2021.1,5.4977]
[1743007804299,4.16311425,2021.2,2021.1,7.19840652]
[1743007806332,4.16311425,2021.2,2020.9,17.04477516]
[1743007806631,4.16311425,2021.2,2021.1,4.757]
[1743007806807,9.11066425,2021.2,2021.1,4.757]
[1743007807214,4.16311425,2021.2,2021.1,4.757]
[1743007809339,9.11066425,2021.2,2021.1,4.757]
[1743007809738,4.94804,2021.0,2020.9,6.12]
[1743007809942,9.30975425,2021.0,2020.9,6.12]
[1743007810153,4.94838,2020.9,2020.5,11.06925]
[1743007810353,4.16311425,2020.8,2020.6,4.756]
[1743007810560,3.1986,2021.2,2020.8,4.94835]
[1743007810719,3.0,2021.2,2020.8,5.75705]
[1743007811051,7.16311425,2021.2,2020.8,5.75705]
[1743007811240,4.16311425,2021.0,2020.8,0.8087]
[1743007811448,7.16311425,2021.0,2020.9,14.5]
[1743007811811,7.16311425,2021.0,2020.8,0.55]
[1743007812526,12.11118425,2021.0,2020.7,21.031131]
[1743007812731,4.16311425,2020.8,2020.7,19.99862]
[1743007813648,4.16311425,2020.8,2020.7,15.05]
[1743007813844,4.16311425,2020.8,2020.7,0.55]
[1743007814017,12.11125425,2021.0,2020.7,0.55]
[1743007814223,3.0,2020.9,2020.7,5.307]
[1743007814955,3.37412992,2020.9,2020.7,5.307]
[1743007815646,8.32252992,2020.9,2020.7,5.307]
[1743007815837,4.16311425,2020.8,2020.7,5.307]
[1743007816839,4.16311425,2020.8,2020.7,4.757]
[1743007817548,4.16311425,2020.8,2020.7,9.70578]
[1743007817743,4.16311425,2020.8,2020.7,4.757]
[1743007818147,3.37412992,2020.9,2020.7,9.70568]
[1743007818315,3.37412992,2020.9,2020.7,11.46508082]
[1743007818515,0.37412992,2020.9,2020.8,0.787]
[1743007818755,4.16311425,2021.0,2020.8,15.287]
[1743007818756,7.16311425,2021.0,2020.8,15.287]
[1743007819458,7.16311425,2021.0,2020.8,20.23548]
[1743007819663,7.16311425,2021.0,2020.8,0.787]
[1743007819857,7.16311425,2021.0,2020.7,11.46508082]
[1743007820158,7.16311425,2021.0,2020.8,14.5]
[1743007820329,7.16311425,2021.0,2020.8,19.44845]
[1743007820533,7.16311425,2021.0,2020.8,14.5]
[1743007821214,7.16311425,2021.0,2020.8,19.44847]
[1743007821413,7.16311425,2021.0,2020.8,14.5]
[1743007822457,12.11116425,2021.0,2020.8,14.5]
[1743007823649,7.16311425,2021.0,2020.8,14.5]
[1743007825247,7.16311425,2021.0,2020.8,19.44837]
[1743007825458,7.16311425,2021.0,2020.8,14.5]
[1743007827452,7.16311425,2021.0,2020.7,10.70561016]
[1743007827637,7.16311425,2021.0,2020.7,9.70563]
[1743007827837,12.11115425,2021.0,2020.7,24.20563]
[1743007828169,4.94888,2020.7,2020.5,6.12]
[1743007828375,4.16311425,2020.6,2020.2,0.8106]
[1743007828538,9.11297425,2020.3,2020.1,14.5]
[1743007828733,9.11297425,2020.3,2020.0,4.95047]
[1743007828734,4.16311425,2020.3,2020.0,4.95047]
[1743007828925,7.16311425,2020.3,2020.1,4.95023]
[1743007829239,7.16311425,2020.3,2020.1,14.5]
[1743007829473,7.16311425,2020.3,2020.0,9.70746]
[1743007829775,7.16311425,2020.3,2020.0,11.866237]
[1743007829928,12.11290425,2020.3,2020.0,26.366237]
[1743007830127,7.16311425,2020.3,2020.0,26.366237]
[1743007830374,7.16311425,2020.3,2020.0,21.415877]
[1743007830575,7.53337216,2020.3,2020.1,4.95008]
[1743007830865,7.53337216,2020.3,2020.1,8.6937217]
[1743007831067,7.53337216,2020.3,2020.1,3.7436417]
[1743007831226,12.48314216,2020.3,2020.0,26.366277]
[1743007831555,8.32002791,2020.3,2020.0,26.366277]
[1743007831743,12.48314216,2020.3,2020.0,26.366277]
[1743007832065,7.53337216,2020.3,2020.0,26.366277]
[1743007832782,7.53337216,2020.3,2020.1,6.24730324]
[1743007833475,7.53337216,2020.3,2020.2,4.95]
[1743007833476,4.16311425,2020.3,2020.2,4.95]
[1743007834167,4.16311425,2020.3,2020.2,19.45]
[1743007834367,4.16311425,2020.3,2020.2,14.5]
[1743007834840,3.0,2020.2,2020.0,2.158877]
[1743007835037,4.16311425,2020.1,2019.6,11.07146]
[1743007835269,4.16311425,2020.1,2019.7,4.757]
[1743007835270,4.16311425,2019.8,2019.7,4.757]
[1743007835470,4.16311425,2019.8,2019.7,15.05]
[1743007835622,4.16311425,2019.8,2019.7,4.757]
[1743007835826,4.16311425,2019.8,2019.7,5.307]
[1743007836570,4.16311425,2019.8,2019.7,4.757]
[1743007836737,7.16311425,2019.8,2019.5,4.757]
[1743007836936,4.36171425,2020.2,2019.9,4.95074]
[1743007837128,3.0,2020.2,2020.0,19.45027]
[1743007837329,3.0,2020.2,2020.0,24.40065]
[1743007837539,3.0,2020.2,2020.1,4.95024]
[1743007837763,3.0,2020.2,2020.0,24.20742]
[1743007838264,3.0,2020.2,2020.1,4.95024]
[1743007838632,3.0,2020.2,2020.0,24.20732]
[1743007838832,3.0,2020.2,2020.0,24.20748]
[1743007839165,3.0,2020.2,2020.1,4.95024]
[1743007839467,3.0,2020.2,2020.0,24.20741]
[1743007839767,3.0,2020.2,2020.0,24.20731]
[1743007839932,4.16311425,2020.3,2020.1,4.95024]
[1743007840261,4.16311425,2020.3,2020.1,4.95013]
[1743007842240,4.16311425,2020.3,2020.1,4.95012]
[1743007842953,4.16311425,2020.3,2020.0,25.0]
[1743007843159,7.16311425,2020.3,2020.2,4.95]
[1743007843737,4.16311425,2020.5,2020.3,4.94959]
[1743007843936,4.16311425,2020.5,2020.2,5.72348]
[1743007844159,4.16311425,2020.5,2020.2,13.666431]
[1743007844366,4.16311425,2020.5,2020.4,4.94951]
[1743007845072,7.16311425,2020.5,2020.4,4.94951]
[1743007846080,4.16311425,2020.5,2020.4,4.94951]
[1743007847465,4.16311425,2020.9,2020.6,9.89794]
[1743007847676,4.16311425,2020.9,2020.7,4.94877]
[1743007847857,4.16311425,2020.9,2020.6,9.70692]
[1743007847858,3.0,2020.8,2020.6,9.70692]
[1743007848074,4.16311425,2020.7,2020.6,10.25692]
[1743007848363,4.16311425,2020.7,2020.6,5.308]
[1743007848939,4.16311425,2020.7,2020.6,10.25702]
[1743007849272,4.16311425,2020.7,2020.6,5.308]
[1743007849783,4.94906,2020.6,2020.4,10.878]
[1743007850070,12.11237425,2020.5,2020.4,10.878]
[1743007850285,12.11237425,2020.5,2020.4,6.12]
[1743007850479,7.16311425,2020.5,2020.4,6.12]
[1743007852773,3.0,2020.4,2020.2,10.69858013]
[1743007852982,7.16311425,2020.5,2020.2,10.69858013]
[1743007853188,3.0,2020.4,2020.2,10.69858013]
[1743007853386,7.16311425,2020.5,2020.2,10.69858013]
[1743007853586,3.0,2020.4,2020.2,10.69858013]
[1743007854098,3.0,2020.4,2020.2,5.74871013]
[1743007854799,3.0,2020.4,2020.2,10.69862013]
[1743007856396,3.0,2020.4,2020.2,5.74871013]
[1743007856596,4.16311425,2020.3,2020.2,6.29871013]
[1743007857472,4.16311425,2020.3,2020.2,11.24871013]
[1743007859610,4.16311425,2020.3,2020.1,4.757]